Cogmind - Beta 16.1 @@@ ROGUE MODE // 2026.03.13 @ 09:36:03 Player: N_ Result: Destroyed by G-47 Trooper with Particle Gun Performance ------------- Evolutions (2) 1000 Regions Visited (3) 600 Robots Destroyed (54) 270 Value Destroyed (1208) 1208 Prototype IDs (0) 0 Alien Tech Used (0) 0 Bonus (0) 0 TOTAL SCORE: 3078 Bonus ------- None Cogmind --------- Core Integrity 0/550 Matter 0/300 Energy 125/125 System Corruption 0% Temperature Cool (9) Movement Core (1400) Ox27 Location -8/Materials Parts ------- > --- POWER (2) -------- Light Ion Engine > --- PROPULSION (3) --- (None) > --- UTILITY (4) ------ Huge Storage Unit Advanced Visual Processing Unit Terrain Scan Processor Launcher Guidance Computer > --- WEAPON (2) ------- (None) > --- INVENTORY (25) --- Light Nuclear Core Heat Sink Improved Cooling System Improved Cooling System Structural Scanner Sensor Array Peak State ------------ > --- POWER ------------ Improved Ion Engine Nuclear Core > --- PROPULSION ------- Light Treads Light Treads Light Treads > --- UTILITY ---------- Huge Storage Unit Advanced Visual Processing Unit Terrain Scan Processor Launcher Guidance Computer > --- WEAPON ----------- Mini Grenade Launcher Mini Grenade Launcher > --- INVENTORY -------- Light Ion Engine Heat Sink Improved Cooling System Improved Cooling System Structural Scanner Sensor Array Mini Grenade Launcher Mini Grenade Launcher [Rating: 23] Favorites ----------- Power Improved Ion Engine Engine Improved Ion Engine Power Core Light Nuclear Core Propulsion Light Treads Treads Light Treads Utility Heat Sink Device Heat Sink Storage Small Storage Unit Processor Advanced Visual Processing Unit Weapon Mini Grenade Launcher Energy Gun Particle Gun Ballistic Gun Assault Rifle Launcher Mini Grenade Launcher Build | -11 -10 -9 -8 ------- Run | Yrd Mat Mat Mat Slots Evolved 4 | . . 2 2 Power 1 | . . 1 . Propulsion 1 | . . . 1 Utility 2 | . . 1 1 Weapon . | . . . . Parts Attached 32 | 6 8 13 5 Power 5 | 1 1 2 1 Engine 3 | 1 . 2 . Core 2 | . 1 . 1 Reactor . | . . . . Propulsion 5 | 2 . 2 1 Treads 5 | 2 . 2 1 Leg . | . . . . Wheel . | . . . . Hover . | . . . . Flight . | . . . . Utility 15 | 1 5 7 2 Device 7 | . 4 3 . Storage 3 | 1 1 1 . Processor 5 | . . 3 2 Hackware . | . . . . Protection . | . . . . Artifact . | . . . . Weapon 7 | 2 2 2 1 Energy Gun 2 | . 2 . . Energy Cannon . | . . . . Ballistic Gun 2 | 2 . . . Ballistic Cannon . | . . . . Launcher 3 | . . 2 1 Special Weapon . | . . . . Impact Weapon . | . . . . Slashing Weapon . | . . . . Piercing Weapon . | . . . . Special Melee Weapon . | . . . . Unidentified Prototypes . | . . . . Parts Lost 10 | . 1 1 8 Power 2 | . . . 2 Propulsion 3 | . . . 3 Utility 1 | . . 1 . Weapon 4 | . 1 . 3 Highest Loss Streak 7 | . 1 1 7 To Critical Strikes . | . . . . Average Backups 4 | . 2 4 7 Power . | . . . 1 Propulsion . | . . . . Utility 2 | . 1 3 4 Weapon 1 | . . 1 1 Tool/Special . | . . . . Unused Backups 4 | . . . 4 Power 1 | . . . 1 Propulsion . | . . . . Utility 2 | . . . 2 Weapon 1 | . . . 1 Tool/Special . | . . . . Average Slot Usage (%) 94 | . 97 94 89 Engine 11 | . 7 15 11 Core 4 | . 6 3 4 Treads 24 | . 28 21 22 Device 9 | . 11 14 . Storage 8 | . 14 3 9 Processor 11 | . . 13 26 Energy Gun 7 | . 16 4 . Ballistic Gun 5 | . 11 4 . Launcher 9 | . . 13 15 Peak Build Rating 23 | 6 11 16 23 Average Rating 12 | 5 8 13 20 On Entrance 8 | . 6 10 16 Avg Prop Armor Cover (%) . | . . . . Naked Turns . | . . . . Heaviest Build 96 | 14 17 94 96 Greatest Support 60 | 40 40 40 60 Greatest Overweight (x) 31 | . . 2 31 Average Overweight (x) . | . . . 2 Largest Inventory Capacity 25 | 8 8 25 25 Average Capacity 12 | 7 7 10 25 Most Carried 9 | . 5 7 9 Average Carried 4 | . 2 4 7 Final Capacity 25 | 8 5 25 25 Final Carried 7 | . 4 7 6 Class Distribution -------------------- 56% | Scavenger-Mutant 43% | Mutant Dominant Class ---------------- Mutant | -10/Materials Scavenger-Mutant | -9/Materials Scavenger-Mutant | -8/Materials Resources | -11 -10 -9 -8 ----------- Run | Yrd Mat Mat Mat Matter Collected 904 | 212 336 125 231 Remotely . | . . . . Salvage Created 1274 | . 500 313 461 Parts 86 | . 22 32 32 Haulers Intercepted . | . . . . Recyclers Shooed 3 | . 1 1 1 Parts Field Recycled . | . . . . Retrieved Matter . | . . . . Parts Self-Destructed . | . . . . Prevented . | . . . . Parts Restored . | . . . . Kills | -11 -10 -9 -8 ------- Run | Yrd Mat Mat Mat Combat Hostiles Destroyed 34 | . 9 12 13 Guns 16 | . 9 7 . AOE 18 | . . 5 13 Classes Destroyed 9 | . 5 3 1 Worker 6 | . 2 1 3 Builder 3 | . 1 . 2 Tunneler 2 | . 1 . 1 Recycler 5 | . 1 2 2 Operator 1 | . . . 1 Watcher 3 | . . 2 1 Swarmer 13 | . . 10 3 Grunt 18 | . 9 . 9 Sentry 3 | . . 2 1 Best Kill Streak 8 | . 3 5 8 Combat Bots Only 5 | . 2 4 5 Max Kills in Single Turn 2 | . 1 2 2 Gunslinging 1 | . . 1 . Exploded 2 | . . 2 2 Melee . | . . . . Uniques/NPCs Destroyed . | . . . . Combat | -11 -10 -9 -8 -------- Run | Yrd Mat Mat Mat Hostile Shots Fired 203 | . 45 44 114 Missed 55 | . 10 13 32 Hits 148 | . 35 31 82 Projectile 148 | . 35 31 82 Critical Strikes 1 | . . . 1 Damage Taken 2011 | . 405 306 1300 Core 669 | . 83 25 561 Absorbed by Shields . | . . . . Core Remaining (%) 86 | 100 66 93 . Volleys Fired 100 | . 52 23 25 Largest 2 | . 2 2 2 Hottest 130 | . 130 85 60 Shots Fired 185 | . 103 45 37 Gun 136 | . 103 33 . Cannon . | . . . . Launcher 49 | . . 12 37 Special . | . . . . Kinetic 63 | . 46 17 . Thermal 73 | . 57 16 . Explosive 49 | . . 12 37 Electromagnetic . | . . . . Robot Hit Streak 27 | . 13 3 27 Robot Miss Streak 5 | . 5 4 . Penetration Max . | . . . . Secondary Targets 3 | . 2 1 . Max Gunslinging Chain 1 | . 1 1 . Shots Hit Robots 100 | . 58 17 25 Core Hits 87 | . 25 20 42 Critical Kills . | . . . . Critical Parts Destroyed . | . . . . Critical Strikes 1 | . 1 . . Burn 1 | . 1 . . Melee Attacks . | . . . . Impact . | . . . . Slashing . | . . . . Piercing . | . . . . Sneak Attacks . | . . . . Combat Hostiles . | . . . . Follow-up Attacks . | . . . . Damage Inflicted 3711 | . 853 651 2207 Guns 1013 | . 853 160 . Cannons . | . . . . Explosions 2668 | . . 477 2191 Melee . | . . . . Ramming 30 | . . 14 16 Kinetic 371 | . 288 83 . Thermal 661 | . 565 96 . Explosive 2649 | . . 458 2191 Electromagnetic . | . . . . Impact . | . . . . Slashing . | . . . . Piercing . | . . . . Highest Corruption 1 | . . 1 . Average Corruption 1 | . . 1 . Corruption Purged . | . . . . Corruption Blocked . | . . . . Effects 5 | . . 5 . Message Errors 2 | . . 2 . Matter Fused 1 | . . 1 . Data Loss (major) 1 | . . 1 . Alerts 1 | . . 1 . Overload Shots . | . . . . Overflow Damage 67 | . . 7 60 Projectiles . | . . . . Explosions 67 | . . 7 60 Melee . | . . . . Knockbacks 2 | . . 1 1 Impact 2 | . . 1 1 Kinetic . | . . . . Secondary . | . . . . Self-Inflicted Damage 188 | . . . 188 Shots 6 | . . . 6 Rammed 4 | . . 1 3 Targets Rammed 4 | . . 1 3 Kicked . | . . . . Crushed . | . . . . Highest Temperature 450 | . 450 18 48 Average Temperature 71 | . 90 8 19 Received Heat Transfer 750 | . 228 9 513 Effects 2 | . 2 . . Shutdowns 1 | . 1 . . Damage (minor) 1 | . 1 . . Siege Activations . | . . . . Martial Activations . | . . . . Shielding Activations . | . . . . Robots Disrupted . | . . . . Combat Hostiles . | . . . . Robots Corrupted . | . . . . Combat Hostiles . | . . . . Parts Fried . | . . . . Impact Corruptions . | . . . . Robots Melted . | . . . . Combat Hostiles . | . . . . Parts Melted . | . . . . Heat Transferred 1678 | . 1443 235 . Parts Sabotaged . | . . . . Parts Stolen . | . . . . Parts Stripped . | . . . . Power Chain Reactions 1 | . . 1 . Alert | -11 -10 -9 -8 ------- Run | Yrd Mat Mat Mat Maximum Alert Level 1 | . . . 1 Low Security (%) 96 | 100 100 100 85 Level 1 3 | . . . 14 Level 2 . | . . . . Level 3 . | . . . . Level 4 . | . . . . Level 5 . | . . . . High Security . | . . . . Max Security . | . . . . Peak Influence 232 | . 71 146 232 Initial 48 | . . 19 48 Average 52 | . 22 53 121 Influence Increases 1225 | . 255 434 536 Destroy 0b10 Robot/C 680 | . 180 240 260 Destroy 0b10 Robot/NC 100 | . 25 25 50 Destroy Leader 146 | . 50 54 42 Successful Hack 16 | . . 8 8 Disable Machine 75 | . . 30 45 Destroy Structure 193 | . . 62 131 Lose Combat Pursuer 15 | . . 15 . Influence Decreases 1011 | . 208 367 436 Entered New Map 94 | . . 28 66 Time Decay 619 | . 198 217 204 Lost Part 100 | . 10 10 80 Purge Threat 198 | . . 112 86 Squads Dispatched 9 | . 4 2 3 Investigation 3 | . 1 1 1 Extermination . | . . . . Reinforcement 6 | . 3 1 2 Assault . | . . . . Garrison . | . . . . Intercept . | . . . . Searches Triggered . | . . . . Construction Impeded 2 | . . . 2 Haulers Reinforced . | . . . . Active Scanning Responses . | . . . . Cargo Convoy Interrupts . | . . . . Stealth | -11 -10 -9 -8 --------- Run | Yrd Mat Mat Mat Distress Signals 1 | . . 1 . Communications Jammed . | . . . . Distress Signals . | . . . . Times Spotted 50 | . 16 18 16 Peak Tracking Total 5 | . 3 4 5 Tactical Retreats 1 | . . 1 . Traps | -11 -10 -9 -8 ------- Run | Yrd Mat Mat Mat Traps Triggered 2 | . 1 1 . Indirectly . | . . . . Trap Hack Attempts . | . . . . Triggered . | . . . . Disarmed . | . . . . Reprogrammed . | . . . . Reused . | . . . . Traps Extracted . | . . . . Installed . | . . . . Triggered . | . . . . Machines | -11 -10 -9 -8 ---------- Run | Yrd Mat Mat Mat Machines Disabled 5 | . . 2 3 Max in Single Turn 1 | . . 1 1 Machines Repaired . | . . . . Machines Dismantled . | . . . . Machines Sabotaged . | . . . . Overloaded Fab Kills . | . . . . Hacking | -11 -10 -9 -8 --------- Run | Yrd Mat Mat Mat Machines Accessed 4 | . 1 2 1 Terminals 4 | . 1 2 1 Fabricators . | . . . . Repair Stations . | . . . . Recycling Units . | . . . . Scanalyzers . | . . . . Garrison Access . | . . . . Total Hacks 20 | . 3 7 10 Successful 9 | . 1 3 5 Failed 11 | . 2 4 5 Catastrophic 5 | . 1 2 2 Database Lockouts . | . . . . Manual 14 | . 2 6 6 Terminals 20 | . 3 7 10 Fabricators . | . . . . Repair Stations . | . . . . Recycling Units . | . . . . Scanalyzers . | . . . . Garrison Access . | . . . . Terminal Hacks 9 | . 1 3 5 Record 2 | . 1 1 . Emergency Access Points 1 | . . . 1 Recycling Unit Index 1 | . . . 1 Unreport Threat 2 | . . 1 1 Reprogram Traps 1 | . . 1 . Dispatch Records 1 | . . . 1 Maintenance Status 1 | . . . 1 Fabricator Hacks . | . . . . Repair Station Hacks . | . . . . Recycling Unit Hacks . | . . . . Scanalyzer . | . . . . Garrison Access Hacks . | . . . . Unauthorized Hacks . | . . . . Terminals . | . . . . Fabricators . | . . . . Repair Stations . | . . . . Recycling Units . | . . . . Scanalyzers . | . . . . Garrison Access . | . . . . Data Cores Recovered . | . . . . Used . | . . . . Hacking Detections 4 | . 1 2 1 Full Trace Events 4 | . 1 2 1 Feedback Events 1 | . . 1 . Corruption 1 | . . 1 . Feedback Blocked . | . . . . Robot Schematics Acquired . | . . . . Robots Built . | . . . . Authchips . | . . . . Time . | . . . . Total Robot Build Rating . | . . . . Part Schematics Acquired . | . . . . Parts Built . | . . . . Authchips . | . . . . Time . | . . . . Total Part Build Rating . | . . . . Part Studies Acquired . | . . . . Parts Repaired . | . . . . Time . | . . . . Parts Recycled . | . . . . Recycled Matter . | . . . . Retrieved Matter . | . . . . Retrieved Components . | . . . . Parts Scanalyzed . | . . . . Part Schematics Acquired . | . . . . Parts Damaged . | . . . . Bothacking | -11 -10 -9 -8 ------------ Run | Yrd Mat Mat Mat Used RIF Installer . | . . . . Robots Hacked . | . . . . Non-combat . | . . . . Combat . | . . . . Robot Hacks Applied . | . . . . Relay Couplers Released . | . . . . Fabnet Peak Effective % . | . . . . Robots Rewired . | . . . . Allies Hacked . | . . . . Hacks Repelled . | . . . . Allies | -11 -10 -9 -8 -------- Run | Yrd Mat Mat Mat Total Allies . | . . . . Largest Group . | . . . . Highest-Rated Group . | . . . . Highest-Rated Ally . | . . . . Total Orders . | . . . . Ally Attacks . | . . . . Total Damage . | . . . . Kills . | . . . . Allies Corrupted . | . . . . Allies Melted . | . . . . Intel | -11 -10 -9 -8 ------- Run | Yrd Mat Mat Mat Active Infowar (turns) 1057 | . . 614 443 Optics 934 | . . 491 443 Sensors 192 | . . 192 . Structural 121 | . . 121 . Robot Analysis Total . | . . . . Derelict Logs Recovered . | . . . . Drone Launches . | . . . . Drone Recoveries . | . . . . Exploration | -11 -10 -9 -8 ------------- Run | Yrd Mat Mat Mat Turns Passed 1987 | 245 614 685 443 Spaces Moved 759 | 54 274 302 129 Core 8 | 3 . . 5 Treads 751 | 51 274 302 124 Legs . | . . . . Wheels . | . . . . Hover . | . . . . Flight . | . . . . Fastest Speed 50 | 50 160 160 240 Average Speed 192 | 153 160 190 285 Slowest Speed 1600 | 160 160 320 1600 Overloaded Moves . | . . . . Propulsion Burnouts . | . . . . Robots Hopped . | . . . . Potential Cave-ins . | . . . . Cave-ins Triggered . | . . . . Exploration Rate (%) 28 | 4 54 39 17 Regions Visited 3 Branch Regions . Pre-discovered Areas . | . . . . Known Exits Taken . | . . . . Unknown Exits Taken 3 | 1 1 1 . Scrap Searched . | . . . . Spaces Dug . | . . . . Terrain Destroyed 290 | . . 109 181 Melee . | . . . . Projectile . | . . . . AOE 290 | . . 109 181 Terrain Rammed . | . . . . Walls Destroyed . | . . . . Machines Disabled . | . . . . Actions | -11 -10 -9 -8 --------- Run | Yrd Mat Mat Mat Total 1105 | 213 349 370 173 Wait 160 | 154 . 6 . Move 756 | 53 273 301 129 Hop . | . . . . Pick Up 11 | . 2 6 3 Fast Attach 28 | 6 8 11 3 Attach 9 | . 2 3 4 Detach 19 | . 8 8 3 Swap 1 | . . 1 . Drop 17 | . 4 10 3 Fire 100 | . 52 23 25 Melee . | . . . . Ram . | . . . . Kick . | . . . . Crush 4 | . . 1 3 Escape Stasis . | . . . . Rewire . | . . . . Trap . | . . . . Miscellaneous . | . . . . Route ------- -11/Scrapyard -10/Materials -9/Materials -8/Materials (discovered 1 exit: [*Sto]) History --------- Turn | Location | Event 9 | -11/Scrapyard | Discovered new exit (range 14) 246 | -11/Scrapyard | Entered Materials 312 | -10/Materials | Build established: Mutant 614 | -10/Materials | Discovered new exit (range 4) 860 | -10/Materials | Entered another Materials area 860 | -9/Materials | Evolved 2 slots: Power x1, Utility x1 1073 | -9/Materials | Build established: Scavenger-Mutant 1418 | -9/Materials | Discovered new exit (range 19) 1545 | -9/Materials | Entered another Materials area 1545 | -8/Materials | Evolved 2 slots: Propulsion x1, Utility x1 1806 | -8/Materials | Discovered new exit (range 17) 1934 | -8/Materials | Core integrity fell below 50% 1959 | -8/Materials | Lost 7 parts (2p3n2w) 1979 | -8/Materials | Core integrity fell below 20% 1988 | -8/Materials | Destroyed by G-47 Trooper with Particle Gun Last Messages --------------- 01942_ The unstable cave ceiling collapses. 01943_ U-05 Engineer lays Concrete. 01944_ R-06 Scavenger collects Wheel. 01944_ U-05 Engineer lays Concrete. 01945_ The unstable cave ceiling collapses. 01945_ U-05 Engineer lays Concrete. 01947_ U-05 Engineer builds a Wall. 01948_ R-06 Scavenger collects Lgt. Ion Engine. 01949_ The unstable cave ceiling collapses. 01950_ Acquired 11 matter. 01951_ U-05 Engineer builds a Wall. 01959_ The unstable cave ceiling collapses. 01964_ G-47 Trooper destroyed. 01972_ Mni. Grenade Launcher destroyed. 01973_ The unstable cave ceiling collapses. 01980_ M-13 Machinist repairs G-47 Trooper. 01981_ U-05 Engineer lays Concrete. 01982_ The unstable cave ceiling collapses. 01982_ U-05 Engineer lays Concrete. 01984_ U-05 Engineer builds a Wall. Map ----- +----------------------------------------------------+ | ????????????????##### #####??? | | ?????#+########## # # ####??????? | | #?????????? | | #?????????? | | #?????????? | | ??###### ##### # #?????????? | | ???????#???????######## #?????????? | | ?????????????????????## #?????????? | | ?????????????????????## ##########? | | ?????????????????????## # #? | | ?????????????????????## # """ #? | | ???????????############ #] """ #? | | ???????????# ## # """ #? | | ???????????# """ """ ## + #? | | ???????????# """ """ ## """ /#? | | ???????????# """ """ ## # """ #? | | ???????????# ## # """ #? | | ???????????# # #? | | ???????????+ # # # #####? | | ???????????# u### ##????? | | ???????????##### # #####? | | ??????????????# #? | | ???????? # # #? | | ???????? < [# # m #? | | ???????? # #? | | ?????????+#+### # @ #? | | ??????????????## ! ## gg #? | | ???????????????#= # [= #? | | ???????????????# # a% #? | | ???????????????# # * = #? | | ???????????????# # # ##### | | ???????????????# # # ! # | | ??????????###### [ # | | ????????# # | | ??????? # | | ????????# = # | | ????????####/### ######! # | | ???????????????# # # | | ???????????????# # " # # | | ???????????????# ?+ """ ########### | | ???????????????# ??# """ ??????????? | | ???????????????#???# """ ??????????? | | ???????????????????# "" ??????????? | | ???????????????????#?""" ??????????? | | ??????????????????????"" ??????????? | | ??????????????????????"" ??????????? | | ??????????????????????? ???????????? | | ??????????????????????? ???????????? | | ??????????????????????? ???????????? | | ?????????????????????? ! ???????????? | +----------------------------------------------------+ Best States ------------- Heat Dissipation 53 Energy Generation 21 Energy Capacity 405 Matter Stores 339 Matter Capacity 350 Sight Range 20 Robot Scan Range 14 Terrain Scan Density 85 Evasion (%) 40 Targeting Accuracy 6 Launcher Accuracy 20 Recoil Reduction 3 Item Schematics ----------------- None Robot Schematics ------------------ None Fabricated ------------ Nothing Repaired ---------- Nothing Studied --------- None Alien Tech Used ----------------- None Achievements -------------- Resistances Are Futile Challenges ------------ None Game ------ Seed BombCryofiberHarness Manual? 0 Play Time 00:26:05 Cumulative 3.4 hours Start 2026.03.12 @ 21:07:10 End 2026.03.13 @ 09:36:03 Sessions 5 Manual Loads 0 Difficulty Rogue Special Mode None Game No. 3 Rogue 1 Adventurer 2 Explorer 0 Win Type - Total 0 Types 0/0/0/0/0/0/0/0/0/0 Lore% 0 Gallery% 7 Achievement% 8 Wizard Run 0 Options --------- Layout 2 ASCII 0 Keyboard 1 Movement Numpad Keybinds 0 Fullscreen 2 Font 32/SmallcapsGlow Map View 50x44 Zoom Use 0% Tactical HUD 1 Map Filters NONE Filters NONE Steam 1 RUN: cffd2ed7-5f6a-40fc-8e38-5c1164d13ffb